bitfinex/quotes_ETHUSD_20240928
["timestamp","ask_amount","ask_price","bid_price","bid_amount"]
[1727501034122,0.8248,2698.3,2698.0,3.70643]
[1727501034329,0.05712063,2698.1,2698.0,3.70643]
[1727501034803,0.8248,2698.3,2698.0,3.70643]
[1727501035006,0.05000006,2698.2,2697.8,4.52304]
[1727501035213,0.05000006,2698.2,2697.8,3.70664]
[1727501035581,0.05707876,2698.1,2697.8,3.70664]
[1727501035793,0.05000006,2698.2,2697.8,3.70664]
[1727501036016,0.05707876,2698.1,2697.8,3.70664]
[1727501036533,5.15476228,2698.3,2697.8,3.70664]
[1727501036534,0.05000006,2698.2,2697.8,7.41328]
[1727501037144,0.05000006,2698.2,2697.8,3.70664]
[1727501037145,0.05707876,2698.1,2697.8,3.70664]
[1727501040124,0.05000006,2698.2,2697.8,3.70664]
[1727501040439,5.15476228,2698.3,2697.8,3.70664]
[1727501040644,0.05691323,2698.2,2697.8,3.70664]
[1727501040948,0.05000006,2698.2,2697.8,3.70664]
[1727501041140,0.05682351,2698.1,2697.8,3.70664]
[1727501041655,0.05000006,2698.2,2697.8,3.70664]
[1727501041941,0.05682351,2698.1,2697.8,3.70664]
[1727501043053,0.05000006,2698.2,2697.8,3.70664]
[1727501043344,5.15476228,2698.3,2697.8,3.70664]
[1727501043345,0.05682351,2698.1,2697.8,3.70664]
[1727501043753,0.05000006,2698.2,2697.8,3.70664]
[1727501043952,0.05673378,2698.0,2697.8,3.70664]
[1727501044153,5.15476228,2698.3,2697.8,3.70664]
[1727501044310,0.05664404,2697.9,2697.8,3.70664]
[1727501044667,0.05664404,2697.9,2697.6,4.52681]
[1727501044851,5.41458283,2698.2,2697.6,4.52681]
[1727501045053,0.05682351,2698.1,2697.6,4.52681]
[1727501045712,0.05682351,2698.1,2697.6,8.23372]
[1727501046608,0.05682351,2698.1,2698.0,3.70644]
[1727501046848,4.58067006,2698.5,2698.0,3.70644]
[1727501047013,0.66509472,2698.4,2698.0,3.70644]
[1727501047563,0.66509472,2698.4,2698.1,3.7063]
[1727501047736,0.66509472,2698.4,2698.0,3.70644]
[1727501048057,0.66509472,2698.4,2698.1,3.70626]
[1727501048566,0.66509472,2698.4,2698.0,3.70644]
[1727501050364,0.05701732,2698.4,2698.0,3.70644]
[1727501050540,0.05701732,2698.4,2698.0,3.70636]
[1727501053640,1.60712129,2698.4,2698.0,3.70636]
[1727501053844,1.60712129,2698.4,2698.1,3.70631]
[1727501054071,1.60712129,2698.4,2698.0,3.70636]
[1727501054348,0.05701732,2698.4,2698.0,3.70636]
[1727501054773,1.60712129,2698.4,2698.0,3.70636]
[1727501055849,1.55010397,2698.3,2698.0,3.70636]
[1727501056063,0.05691743,2698.2,2698.0,3.70636]
[1727501056386,1.55010397,2698.3,2698.0,3.70636]
[1727501056565,0.0568277,2698.1,2698.0,3.70636]
[1727501056761,1.55010397,2698.3,2698.0,4.529649]
[1727501057069,1.55010397,2698.3,2698.0,3.70636]
[1727501057390,0.05691743,2698.2,2698.0,3.70636]
[1727501057764,1.55010397,2698.3,2698.0,3.70636]
[1727501058073,0.0568277,2698.1,2698.0,3.70636]
[1727501058474,0.0568277,2698.1,2697.9,0.8199]
[1727501059785,0.05673798,2698.0,2697.9,4.52648]
[1727501060391,0.05673798,2698.0,2697.9,5.349788]
[1727501063687,1.60684195,2698.0,2697.9,5.349788]
[1727501066675,0.05673798,2698.0,2697.9,5.349788]
[1727501066876,1.60684195,2698.0,2697.9,5.349788]
[1727501067095,1.60684195,2698.0,2697.9,4.52648]
[1727501067855,0.05673798,2698.0,2697.9,4.52648]
[1727501071500,1.60621173,2698.0,2697.9,4.52648]
[1727501071702,0.05673798,2698.0,2697.9,4.52648]
[1727501077714,1.99364599,2698.0,2697.9,4.52648]
[1727501078017,0.05673798,2698.0,2697.9,4.52648]
[1727501078176,1.99364599,2698.0,2697.9,4.52648]
[1727501078517,0.05673798,2698.0,2697.9,4.52648]
[1727501078906,1.99364599,2698.0,2697.9,4.52648]
[1727501079618,0.05673798,2698.0,2697.9,4.52648]
[1727501079826,1.99364599,2698.0,2697.9,4.52648]
[1727501081181,1.99366374,2698.0,2697.9,4.52648]
[1727501081821,0.05673798,2698.0,2697.9,4.52648]
[1727501082320,1.99366374,2698.0,2697.9,4.52648]
[1727501086286,1.99384934,2698.0,2697.9,4.52648]
[1727501088320,0.05673798,2698.0,2697.9,4.52648]
[1727501092269,1.99394698,2698.0,2697.9,4.52648]
[1727501092434,0.05673798,2698.0,2697.9,4.52648]
[1727501094234,1.99394698,2698.0,2697.9,4.52648]
[1727501096110,1.99407107,2698.0,2697.9,4.52648]
[1727501100354,1.99428406,2698.0,2697.9,4.52648]
[1727501100847,1.9943559,2698.0,2697.9,4.52648]
[1727501101870,1.9943559,2698.0,2697.9,3.70658]
[1727501103232,1.9943559,2698.0,2697.8,3.7066]
[1727501103555,1.55009403,2697.9,2697.8,3.7066]
[1727501103957,1.60340084,2697.9,2697.8,3.7066]
[1727501104137,0.05330681,2697.9,2697.7,4.47695]
[1727501104339,1.55014383,2697.8,2697.7,3.70685]
[1727501104734,1.6033609,2697.8,2697.7,3.70685]
[1727501118874,0.833,2697.7,2697.6,7.41391]
[1727501119029,1.55154083,2697.7,2697.6,7.41391]
[1727501119232,0.05014476,2697.7,2697.6,8.939101]
[1727501119430,1.55154083,2697.8,2697.7,3.70686]
[1727501119678,1.55154083,2697.9,2697.7,3.70686]
[1727501119972,1.55154083,2697.9,2697.8,3.70672]
[1727501120157,2.77251652,2698.0,2697.9,3.70658]
[1727501120561,0.88341819,2698.0,2697.9,3.70658]
[1727501121433,2.82298299,2698.0,2697.9,3.70658]
[1727501121632,2.82298299,2698.0,2697.7,3.70686]
[1727501121831,1.55170874,2697.8,2697.7,3.70674]
[1727501122372,1.60194745,2697.8,2697.7,3.70674]
[1727501122736,1.60191899,2697.8,2697.7,3.70674]
[1727501122937,1.60193557,2697.8,2697.7,3.70674]
[1727501126346,1.6018642,2697.8,2697.7,3.70674]
[1727501126953,1.6017638,2697.8,2697.7,3.70674]
[1727501127851,0.05023871,2697.8,2697.7,3.70674]
[1727501128078,1.601855,2697.8,2697.7,3.70674]
[1727501129090,1.60181915,2697.8,2697.7,3.70674]
[1727501132194,1.64876952,2697.8,2697.7,3.70674]
[1727501132865,1.64874182,2697.8,2697.7,3.70674]
[1727501137095,1.6488004,2697.8,2697.7,3.70674]
[1727501137867,1.64878916,2697.8,2697.7,3.70674]
[1727501138064,0.09718908,2697.8,2697.7,3.70674]
[1727501138487,1.64879087,2697.8,2697.7,3.70674]
[1727501140259,0.09718908,2697.8,2697.7,3.70674]
[1727501140808,0.7865,2697.7,2697.6,3.70689]
[1727501140961,2.33800267,2697.7,2697.6,3.70689]
[1727501141173,2.43510794,2697.7,2697.6,3.70689]
[1727501142286,2.43510794,2697.7,2697.5,3.70713]
[1727501142287,0.88360527,2697.7,2697.5,3.70713]
[1727501142490,1.55151445,2697.6,2697.5,3.70713]
[1727501142799,1.64851913,2697.6,2697.5,3.70713]
[1727501143610,0.09700468,2697.6,2697.5,3.70713]
[1727501143810,1.64851913,2697.6,2697.5,3.70713]
[1727501145083,0.7865,2697.5,2696.8,8.25968998]
[1727501145285,0.7865,2697.5,2696.9,7.41573]
[1727501145286,1.55039188,2697.2,2696.9,7.41573]
[1727501145482,1.55039188,2697.2,2696.9,3.70786]
[1727501145824,1.55039188,2697.2,2696.7,4.49559]
[1727501145825,2.33689188,2697.0,2696.7,7.41635]
[1727501146009,1.16185741,2696.8,2696.7,3.70816]
[1727501146411,1.25797327,2696.8,2696.7,3.70816]
[1727501146722,0.09611586,2696.8,2696.7,3.70816]
[1727501146920,1.25797327,2696.8,2696.7,3.70816]
[1727501147499,0.09611586,2696.8,2696.7,3.70816]
[1727501148426,1.25797327,2696.8,2696.7,3.70816]
[1727501148726,0.09611586,2696.8,2696.7,3.70816]
[1727501150489,3.60670018,2697.0,2696.7,3.70816]
[1727501150797,4.49316539,2697.0,2696.7,3.70816]
[1727501151000,0.09620393,2696.9,2696.7,3.70816]
[1727501154356,0.09620393,2696.9,2696.3,0.7874]
[1727501154357,0.7503,2696.7,2696.3,3.7087]
[1727501154557,1.89920705,2696.6,2696.4,3.70863]
[1727501154757,0.09547841,2696.6,2696.5,3.70851]
[1727501155123,0.09547841,2696.6,2696.3,3.70869]
[1727501155448,0.09547841,2696.6,2696.3,7.41737]
[1727501155652,0.09547841,2696.6,2696.4,3.70857]
[1727501155824,0.09547841,2696.6,2696.3,3.70866]
[1727501156209,0.34589053,2696.6,2696.3,3.70866]
[1727501156618,0.34589053,2696.6,2696.2,3.70888]
[1727501157653,0.34589053,2696.6,2696.2,3.70883]
[1727501158336,0.09547841,2696.6,2696.2,3.70883]
[1727501158539,0.09547841,2696.6,2696.3,3.70874]
[1727501158764,0.09547841,2696.6,2696.2,3.70883]
[1727501158973,0.09547841,2696.6,2696.3,3.70874]
[1727501159464,0.09547841,2696.6,2696.2,3.70883]
[1727501159989,0.09547841,2696.6,2696.3,3.70876]
[1727501160278,0.09547841,2696.6,2696.2,3.70883]
[1727501160631,0.72170353,2696.6,2696.2,3.70883]
[1727501161238,2.3800463,2696.6,2696.2,3.70883]
[1727501161440,0.7503,2696.5,2696.2,3.70883]
[1727501161962,0.09530223,2696.4,2696.2,3.70883]
[1727501162971,0.09530223,2696.4,2696.3,3.70878]
[1727501170413,0.09530223,2696.4,2696.0,3.7091]
[1727501170414,0.09530223,2696.4,2696.0,7.4182]
[1727501171110,1.753645,2696.4,2696.1,3.70904]
[1727501171414,2.37988251,2696.4,2696.1,3.70904]
[1727501171972,1.753645,2696.4,2696.1,3.70904]
[1727501176818,1.753645,2696.4,2696.2,3.7089]
[1727501177138,1.753645,2696.4,2696.3,3.70878]
[1727501177640,1.753645,2696.4,2696.2,3.7089]
[1727501181209,1.753645,2696.4,2696.0,3.70913]
[1727501181404,1.753645,2696.4,2696.1,3.70905]
[1727501182576,1.753645,2696.4,2696.2,3.70891]
[1727501183150,1.753645,2696.4,2696.1,3.70903]
[1727501187194,1.753645,2696.4,2696.1,7.418]
[1727501187364,1.753645,2696.4,2696.1,3.70897]
[1727501189472,2.91550241,2696.4,2696.1,3.70897]
[1727501190469,1.16185741,2696.3,2696.1,3.70897]
[1727501190675,1.25577621,2696.3,2696.1,3.70897]
[1727501191463,1.16185741,2696.2,2696.1,3.70897]
[1727501191758,1.25568809,2696.2,2696.1,3.70897]
[1727501192400,0.09383068,2696.2,2696.1,3.70897]
[1727501192604,1.25568809,2696.2,2696.1,3.70897]
[1727501192805,1.16185741,2696.2,2696.1,3.70897]
[1727501193009,1.25568809,2696.2,2696.1,3.70897]
[1727501194597,1.25568809,2696.2,2696.0,3.70918]
[1727501194962,2.08258809,2696.2,2696.0,3.70918]
[1727501195158,1.16185741,2696.1,2695.8,3.7094]
[1727501195418,1.16185741,2696.0,2695.8,3.7094]
[1727501195575,1.25559045,2696.0,2695.8,3.7094]
[1727501197802,1.16185741,2695.9,2695.8,3.7094]
[1727501198174,1.25550231,2695.9,2695.8,3.7094]
[1727501198501,0.0936449,2695.9,2695.8,3.7094]
[1727501199504,1.25550231,2695.9,2695.8,3.7094]
[1727501200393,0.0936449,2695.9,2695.8,3.7094]
[1727501200705,1.25550231,2695.9,2695.8,3.7094]
[1727501201303,0.0936449,2695.9,2695.8,3.7094]
[1727501201671,1.25550231,2695.9,2695.8,3.7094]
[1727501201891,0.0936449,2695.9,2695.8,3.7094]
[1727501204905,1.25550231,2695.9,2695.8,3.7094]
[1727501206467,0.0936449,2695.9,2695.8,3.7094]
[1727501207705,1.25550231,2695.9,2695.8,3.7094]
[1727501213195,1.25550231,2695.9,2695.8,5.36237]
[1727501213921,0.0936449,2695.9,2695.8,5.36237]
[1727501214530,1.25550231,2695.9,2695.8,5.36237]
[1727501219207,1.25550231,2695.9,2695.8,4.5384]
[1727501222237,0.0936449,2695.9,2695.8,4.5384]
[1727501226643,0.0936449,2695.9,2695.8,4.61258191]
[1727501226854,0.0936449,2695.9,2695.8,4.5384]
[1727501227906,0.0936449,2695.9,2695.8,6.27092353]
[1727501228110,1.16185741,2696.0,2695.9,4.49553]
[1727501228446,1.16185741,2696.0,2695.9,7.87671018]
[1727501228618,1.16185741,2696.0,2695.9,7.80254018]
[1727501229117,1.16185741,2696.0,2695.9,7.49553]
[1727501229315,1.16185741,2696.0,2695.9,9.25262251]
[1727501229523,1.16185741,2696.0,2695.9,9.55950493]
[1727501232253,1.16185741,2696.7,2696.6,3.70837]
[1727501232573,1.25642653,2696.7,2696.6,3.70837]
[1727501232911,1.16185741,2696.7,2696.6,3.70837]
[1727501233311,1.25642653,2696.7,2696.6,3.70837]
[1727501234252,0.09456912,2696.7,2696.6,3.70837]
[1727501234552,1.16185741,2696.8,2696.6,3.70837]
[1727501234754,0.09456912,2696.7,2696.6,3.70837]
[1727501234917,1.16185741,2696.8,2696.6,3.70837]
[1727501235119,0.09456912,2696.7,2696.6,3.70837]
[1727501235339,1.16185741,2696.8,2696.6,3.70837]
[1727501235652,0.09456912,2696.7,2696.6,3.70837]
[1727501236149,0.09456912,2696.7,2696.6,7.41674]
[1727501236316,1.16185741,2696.8,2696.6,7.41674]
[1727501236516,0.09456912,2696.7,2696.6,3.70837]
[1727501236739,1.16185741,2696.8,2696.6,7.41666]
[1727501237056,0.09456912,2696.7,2696.6,7.41666]
[1727501237258,1.16185741,2696.8,2696.6,7.41666]
[1727501237754,0.09456912,2696.7,2696.6,3.70829]
[1727501237913,1.16185741,2696.8,2696.6,7.41658]
[1727501238116,0.09456912,2696.7,2696.6,7.41658]
[1727501238313,1.16185741,2696.8,2696.6,7.41658]
[1727501238527,0.09456912,2696.7,2696.6,3.70829]
[1727501238753,1.16185741,2696.8,2696.6,3.70829]
[1727501238984,0.09456912,2696.7,2696.6,3.70829]
[1727501239490,0.09456912,2696.7,2696.6,7.41659]
[1727501239785,1.16185741,2696.9,2696.6,3.70829]
[1727501239989,1.16185741,2696.9,2696.7,3.70821]
[1727501241756,0.8054,2696.8,2696.6,3.70829]
[1727501241975,0.8054,2696.6,2695.9,8.2662]
[1727501242160,3.6236634,2696.4,2695.8,3.70943]
[1727501242361,1.15992063,2696.3,2695.9,3.70931]
[1727501242679,0.09409896,2696.3,2695.9,3.70931]
[1727501243176,1.25401959,2696.3,2695.9,3.70931]
[1727501243351,0.09409896,2696.3,2695.9,3.70931]
[1727501243551,1.25401959,2696.3,2695.9,3.70931]
[1727501245394,2.07518729,2696.3,2695.8,7.41882]
[1727501245551,2.07518729,2696.3,2695.8,3.70939]
[1727501245753,1.96532063,2696.2,2695.8,3.70939]
[1727501245954,3.1333547,2696.2,2695.8,3.70939]
[1727501246559,3.1333547,2696.2,2695.8,3.70945]
[1727501247094,0.89929332,2696.2,2695.8,3.70945]
[1727501247395,0.89929332,2696.2,2696.0,3.70917]
[1727501247757,0.09389332,2696.2,2696.1,3.70906]
[1727501248105,0.09351974,2696.2,2696.1,3.70906]
[1727501248259,1.15992063,2696.3,2696.1,3.70906]
[1727501248450,0.09351974,2696.2,2696.1,3.70906]
[1727501248655,1.15992063,2696.3,2696.1,3.70906]
[1727501248854,0.09354073,2696.2,2696.1,3.70906]
[1727501249050,1.98042063,2696.4,2696.1,3.70906]
[1727501249297,0.09362886,2696.3,2696.2,3.70891]
[1727501250558,0.09362886,2696.3,2696.0,7.41823]
[1727501251408,0.09362886,2696.3,2696.1,3.70904]
[1727501251983,1.25354949,2696.3,2696.1,3.70904]
[1727501252793,0.09362886,2696.3,2696.1,3.70904]
[1727501253265,0.09362886,2696.3,2696.0,3.70906]
[1727501253694,0.09362886,2696.3,2696.0,7.41816]
[1727501253913,1.25354949,2696.3,2695.9,3.70923]
[1727501254101,1.61599363,2696.3,2695.8,3.70943]
[1727501254402,0.8205,2696.2,2695.8,7.41882]
[1727501254561,1.98042063,2696.2,2695.8,7.41882]
[1727501254761,0.09348618,2696.1,2695.8,7.41882]
[1727501255502,0.09348618,2696.1,2695.8,3.70939]
[1727501255675,0.09348618,2696.1,2695.8,3.70938]
[1727501256906,1.25340681,2696.1,2695.8,3.70938]
[1727501257200,0.09348618,2696.1,2695.8,3.70938]
[1727501258130,1.25340681,2696.1,2695.8,3.70938]
[1727501259861,2.02296109,2696.1,2695.6,4.47847]
[1727501260160,2.02296109,2696.1,2695.7,3.70959]
[1727501262239,0.8205,2696.0,2695.7,7.41913]
[1727501262432,0.09006077,2695.9,2695.7,3.70954]
[1727501262637,0.09006077,2695.9,2695.7,3.70951]
[1727501264252,0.09006077,2695.9,2695.8,3.70947]
[1727501265223,0.09006077,2695.9,2695.7,3.70951]
[1727501265363,0.46294319,2695.9,2695.6,3.70962]
[1727501265544,0.09006077,2695.9,2695.6,3.70962]
[1727501266844,1.2499814,2695.9,2695.6,3.70962]
[1727501267184,0.09006077,2695.9,2695.7,3.70956]
[1727501267475,1.2499814,2695.9,2695.7,3.70956]
[1727501267679,0.09006077,2695.9,2695.7,3.70956]
[1727501269388,1.2499814,2695.9,2695.7,3.70956]
[1727501270178,0.09006077,2695.9,2695.7,3.70956]
[1727501270550,0.09006077,2695.9,2695.5,3.70978]
[1727501270756,0.09006077,2695.9,2695.5,7.41955]
[1727501271055,0.09006077,2695.9,2695.6,3.70969]
[1727501271250,1.2499814,2695.9,2695.6,3.70969]
[1727501272362,0.09006077,2695.9,2695.6,3.70969]
[1727501272687,1.2499814,2695.9,2695.6,3.70969]
[1727501273121,0.09006077,2695.9,2695.6,3.70969]
[1727501273331,0.7602,2695.8,2695.5,3.70977]
[1727501273818,0.08906659,2695.7,2695.5,3.70977]
[1727501274220,0.7602,2695.8,2695.5,3.70977]
[1727501274420,0.0889784,2695.6,2695.5,3.70977]
[1727501274583,0.7602,2695.8,2695.5,3.70977]
[1727501274786,0.08894235,2695.6,2695.5,3.70977]
[1727501275116,0.08892135,2695.6,2695.5,3.70977]
[1727501275507,1.68522127,2695.8,2695.5,3.70977]
[1727501275711,0.08900954,2695.7,2695.5,3.70977]
[1727501275914,1.68522127,2695.8,2695.5,3.70977]
[1727501276121,0.41473247,2695.7,2695.5,3.70977]
[1727501277317,0.08900954,2695.7,2695.5,3.70977]
[1727501277517,0.7602,2695.8,2695.5,3.70977]
[1727501277773,0.08892135,2695.6,2695.3,3.71004]
[1727501277949,0.8075,2695.5,2695.3,3.71004]
[1727501278270,0.89638252,2695.5,2695.3,3.71004]
[1727501283569,0.89638252,2695.5,2695.2,3.71027]
[1727501283745,2.05630315,2695.5,2695.1,0.0938193]
[1727501283919,0.23070496,2695.4,2695.1,3.8041993]
[1727501284124,0.08834148,2695.3,2695.1,3.8041993]
[1727501284558,1.15992063,2695.4,2695.1,3.8041993]
[1727501284739,0.08825326,2695.2,2695.1,3.8041993]
[1727501284923,1.15992063,2695.4,2695.1,3.8041993]
[1727501285259,0.08825326,2695.2,2695.1,3.8041993]
[1727501285459,1.15992063,2695.4,2695.1,3.8041993]
[1727501285662,0.08825326,2695.2,2695.1,3.8041993]
[1727501286263,1.73493572,2695.4,2695.1,0.0938193]
[1727501286482,0.08825326,2695.2,2695.1,3.8042393]
[1727501286621,1.73493572,2695.4,2695.1,3.8042393]
[1727501286817,0.08828932,2695.2,2695.1,3.8042393]
[1727501287022,1.73493572,2695.4,2695.1,3.8042393]
[1727501287263,0.08828932,2695.2,2695.1,3.8042393]
[1727501287457,1.15992063,2695.3,2695.1,3.8042393]
[1727501287647,1.15992063,2695.3,2695.1,0.0938193]
[1727501287648,0.89560909,2695.2,2695.1,0.0938193]
[1727501288194,0.89560909,2695.2,2695.1,0.0438193]
[1727501304227,0.08810909,2695.2,2695.1,0.0438193]
[1727501304722,0.0870882,2695.2,2695.1,0.0438193]
[1727501304917,0.67353367,2695.2,2695.1,0.0438193]
[1727501305141,0.76062187,2695.2,2695.1,0.0438193]
[1727501308543,1.9205425,2695.2,2695.1,0.0438193]
[1727501308950,0.76062187,2695.2,2695.1,0.0438193]
[1727501314476,1.9205425,2695.2,2695.1,0.0438193]
[1727501317479,1.24700883,2695.2,2695.1,0.0438193]
[1727501318478,1.63748008,2695.2,2695.1,0.0438193]
[1727501320247,0.0870882,2695.2,2695.1,0.0438193]
[1727501320453,6.05313782,2695.3,2695.1,0.0438193]
[1727501320802,2.01774434,2695.2,2695.1,0.0438193]
[1727501320955,3.13937556,2695.2,2695.1,0.0438193]
[1727501321711,2.0303605,2695.2,2695.1,0.0438193]
[1727501321981,3.96573179,2695.2,2695.1,0.0438193]
[1727501323184,2.0303605,2695.2,2695.1,0.0438193]
[1727501323780,3.96660601,2695.2,2695.1,0.0438193]
[1727501323947,5.79065056,2695.2,2695.1,0.0438193]
[1727501324149,8.66309611,2695.2,2695.1,0.0438193]
[1727501324379,9.00017031,2695.2,2695.1,0.0438193]
[1727501324692,5.7406505,2695.2,2695.1,0.0438193]
[1727501324850,7.44899333,2695.2,2695.1,0.0438193]
[1727501327489,7.39899327,2695.2,2695.1,0.0438193]
[1727501329191,9.72078225,2695.2,2695.1,0.0438193]
[1727501329374,9.72082945,2695.2,2695.1,0.0438193]
[1727501329582,7.39899327,2695.2,2695.1,0.0438193]
[1727501329762,7.44899333,2695.2,2695.1,0.0438193]
[1727501330367,7.99899333,2695.2,2695.1,0.0438193]
[1727501330562,7.94899327,2695.2,2695.1,0.0438193]
[1727501331171,10.27039849,2695.2,2695.1,0.0438193]
[1727501331380,7.94899327,2695.2,2695.1,0.0438193]
[1727501332156,10.27024314,2695.2,2695.1,0.0438193]
[1727501332904,7.94899327,2695.2,2695.1,0.0438193]
[1727501333085,10.27011702,2695.2,2695.1,0.0438193]
[1727501335891,10.26982625,2695.2,2695.1,0.0438193]
[1727501337070,7.94899327,2695.2,2695.1,0.0438193]
[1727501338285,10.26982625,2695.2,2695.1,0.0438193]
[1727501339296,7.94899327,2695.2,2695.1,0.0438193]
[1727501340298,10.26982625,2695.2,2695.1,0.0438193]
[1727501340460,7.94899327,2695.2,2695.1,0.0438193]
[1727501340664,10.26968216,2695.2,2695.1,0.0438193]
[1727501340861,7.94899327,2695.2,2695.1,0.0438193]
[1727501341068,10.26962443,2695.2,2695.1,0.0438193]
[1727501342396,7.94899327,2695.2,2695.1,0.0438193]
[1727501346465,10.65562364,2695.2,2695.1,0.0438193]
[1727501346700,7.94899327,2695.2,2695.1,0.0438193]
[1727501347265,10.65562364,2695.2,2695.1,0.0438193]
[1727501347666,13.65562364,2695.2,2695.1,0.0438193]
[1727501347876,10.94899327,2695.2,2695.1,0.0438193]
[1727501349370,11.3357999,2695.2,2695.1,0.0438193]
[1727501349771,14.53154939,2695.2,2695.1,0.0438193]
[1727501350001,11.3357999,2695.2,2695.1,0.0438193]
[1727501352366,11.3357999,2695.2,2695.1,0.0427152]
[1727501353208,14.03915428,2695.2,2695.1,0.0427152]
[1727501353508,14.03915405,2695.2,2695.1,0.0427152]
[1727501354468,11.3357999,2695.2,2695.1,0.0427152]
[1727501355180,14.03873373,2695.2,2695.1,0.0427152]
[1727501355782,11.3357999,2695.2,2695.1,0.0427152]
[1727501356182,14.03873452,2695.2,2695.1,0.0427152]
[1727501358145,11.3357999,2695.2,2695.1,0.0427152]
[1727501358285,14.03869172,2695.2,2695.1,0.0427152]
[1727501358671,7.61979334,2695.2,2695.1,0.0427152]
[1727501358903,5.50276211,2695.2,2695.1,0.0427152]
[1727501360173,6.05276211,2695.2,2695.1,0.0427152]
[1727501361107,8.36969832,2695.2,2695.1,0.0427152]
[1727501361314,6.00276205,2695.2,2695.1,0.0427152]
[1727501361612,8.36969832,2695.2,2695.1,0.0427152]
[1727501361768,9.60346601,2695.2,2695.1,0.0427152]
[1727501362168,7.2865298,2695.2,2695.1,0.0427152]
[1727501362402,11.09152986,2695.2,2695.1,0.0427152]
[1727501362609,11.0415298,2695.2,2695.1,0.0427152]
[1727501362970,13.74442162,2695.2,2695.1,0.0427152]
[1727501363944,11.42806866,2695.2,2695.1,0.0427152]
[1727501365739,14.62101822,2695.2,2695.1,0.0427152]
[1727501366748,11.42806866,2695.2,2695.1,0.0427152]
[1727501367041,14.62101822,2695.2,2695.1,0.0427152]
[1727501367537,14.62315958,2695.2,2695.1,0.0427152]
[1727501367741,14.5390303,2695.2,2695.1,0.0427152]
[1727501367918,14.61889256,2695.2,2695.1,0.0427152]
[1727501369142,13.1669771,2695.2,2695.1,0.0427152]
[1727501369310,11.42380164,2695.2,2695.1,0.0427152]
[1727501371735,34.72143364,2695.2,2695.1,0.0427152]
[1727501371954,36.4646091,2695.2,2695.1,0.0427152]
[1727501372150,32.4240121,2695.2,2695.1,0.0427152]
[1727501372873,31.7310121,2695.2,2695.1,0.0427152]
[1727501373072,24.6320951,2695.2,2695.1,0.0427152]
[1727501373578,18.8544171,2695.2,2695.1,0.0427152]
[1727501373748,18.1114171,2695.2,2695.1,0.0427152]
[1727501375270,21.30629478,2695.2,2695.1,0.0427152]
[1727501375569,21.30629453,2695.2,2695.1,0.0427152]
[1727501375770,21.30630958,2695.2,2695.1,0.0427152]
[1727501375971,21.3062562,2695.2,2695.1,0.0427152]
[1727501376274,18.1114171,2695.2,2695.1,0.0427152]
[1727501377179,21.30629328,2695.2,2695.1,0.0427152]
[1727501377360,21.30628876,2695.2,2695.1,0.0427152]
[1727501378185,20.81818876,2695.2,2695.1,0.0427152]
[1727501378386,19.75926085,2695.2,2695.1,0.0427152]
[1727501378756,19.26720885,2695.2,2695.1,0.0427152]
[1727501380287,16.0722651,2695.2,2695.1,0.0427152]
[1727501383189,14.32908964,2695.2,2695.1,0.0427152]
[1727501383421,16.0722651,2695.2,2695.1,0.0427152]
[1727501387836,26.2021621,2695.2,2695.1,0.0427152]
[1727501389317,25.9512141,2695.2,2695.1,0.0427152]
[1727501390463,33.71463271,2695.2,2695.1,0.0427152]
[1727501391415,33.07522671,2695.2,2695.1,0.0427152]
[1727501393048,31.38255071,2695.2,2695.1,0.0427152]
[1727501398059,20.93039571,2695.2,2695.1,0.0427152]
[1727501398388,65.67272871,2695.2,2695.1,0.0427152]
[1727501398585,61.8223101,2695.2,2695.1,0.0427152]
[1727501399963,59.7088511,2695.2,2695.1,0.0427152]
[1727501400380,57.5827951,2695.2,2695.1,0.0427152]
[1727501400555,54.0477751,2695.2,2695.1,0.0427152]
[1727501400754,43.8823661,2695.2,2695.1,0.0427152]
[1727501402102,20.86910137,2695.2,2695.1,0.0427152]
[1727501403897,21.41910137,2695.2,2695.1,0.0427152]
[1727501404393,18.24940337,2695.2,2695.1,0.0427152]
[1727501404608,16.5441221,2695.2,2695.1,0.0427152]
[1727501404962,14.4119771,2695.2,2695.1,0.0427152]
[1727501405513,17.61240714,2695.2,2695.1,0.0427152]
[1727501405801,16.32863939,2695.2,2695.1,0.0427152]
[1727501405957,6.88625782,2695.2,2695.1,0.8508152]
[1727501406306,3.79015226,2695.2,2695.1,0.8508152]
[1727501406465,6.11267262,2695.2,2695.1,0.8508152]
[1727501406862,3.79015226,2695.2,2695.1,0.8508152]
[1727501407173,6.11309073,2695.2,2695.1,0.8508152]
[1727501407369,3.84015232,2695.2,2695.1,0.8508152]
[1727501407570,4.39015232,2695.2,2695.1,0.8508152]
[1727501408921,7.09971902,2695.2,2695.1,0.8508152]
[1727501409120,8.34653354,2695.2,2695.1,0.8508152]
[1727501409324,8.29653348,2695.2,2695.1,0.8508152]
[1727501410147,7.04942939,2695.2,2695.1,0.8508152]
[1727501410309,4.39015232,2695.2,2695.1,0.8508152]
[1727501412862,6.71162063,2695.2,2695.1,0.8508152]
[1727501414057,6.71128309,2695.2,2695.1,0.8508152]
[1727501414648,4.39015232,2695.2,2695.1,0.8508152]
[1727501414964,0.07986226,2695.2,2695.1,0.8508152]
[1727501415146,0.07986226,2695.2,2695.1,5.01738772]
[1727501415349,1.23999802,2695.2,2695.1,1.30695772]
[1727501415525,1.23999802,2695.2,2695.1,5.01738772]
[1727501417252,0.07986226,2695.2,2695.1,5.01738772]
[1727501417562,1.16013576,2695.3,2695.2,0.8009]
[1727501417755,1.16013576,2695.3,2695.2,0.58182877]
[1727501417965,1.16013576,2695.3,2695.2,1.38272877]
[1727501418166,1.16013576,2695.3,2695.2,0.8009]
[1727501418466,1.15933063,2695.3,2695.2,0.8009]
[1727501418764,1.70930984,2695.3,2695.2,0.8009]
[1727501421236,1.77145306,2695.3,2695.2,0.8009]
[1727501422270,0.61214322,2695.3,2695.2,0.8009]
[1727501423360,1.77145306,2695.3,2695.2,0.8009]
[1727501424779,7.13995583,2695.3,2695.2,0.8009]
[1727501424984,7.18995589,2695.3,2695.2,0.8009]
[1727501425777,7.57801467,2695.3,2695.2,0.8009]
[1727501426590,6.03064605,2695.3,2695.2,0.8009]
[1727501426772,7.57801467,2695.3,2695.2,0.8009]
[1727501427295,3.86785467,2695.3,2695.2,0.8009]
[1727501427459,2.27048599,2695.3,2695.2,0.8009]
[1727501427662,3.81785461,2695.3,2695.2,0.8009]
[1727501427986,7.57801467,2695.3,2695.2,0.8009]
[1727501428168,3.86785467,2695.3,2695.2,0.8009]
[1727501428669,7.57801467,2695.3,2695.2,0.8009]